fUSD/lending_fUSD_20251210
["ID","MTS","AMOUNT","RATE_DAILY","PERIOD"]
[398094798,1765363930239,-537.71,0.00018904,2]
[398094799,1765363930249,-526.55,0.00018904,2]
[398094800,1765363930258,-622.54,0.00018904,2]
[398094801,1765363930267,-500.0,0.00018904,2]
[398094802,1765363930276,-569.43,0.00018904,2]
[398094803,1765363930285,-500.0,0.00018904,2]
[398094804,1765363930295,-614.97,0.00018904,2]
[398094805,1765363930304,-492.77098346,0.00018904,2]
[398094806,1765363930313,-373.58491829,0.00018904,2]
[398094807,1765363930322,-521.75,0.00018904,2]
[398094808,1765363930332,-691.35,0.00018904,2]
[398094809,1765363930341,-500.0,0.00018904,2]
[398094810,1765363930350,-500.0,0.00018904,2]
[398094811,1765363930360,-831.61,0.00018904,2]
[398094812,1765363930369,-580.62,0.00018904,2]
[398094813,1765363930378,-607.34,0.00018904,2]
[398094814,1765363930387,-558.66,0.00018904,2]
[398094815,1765363930397,-500.0,0.00018904,2]
[398094816,1765363930406,-687.2,0.00018904,2]
[398094817,1765363930415,-697.92,0.00018904,2]
[398094818,1765363930424,-663.24,0.00018904,2]
[398094819,1765363930433,-500.0,0.00018904,2]
[398094820,1765363930443,-500.0,0.00018904,2]
[398094821,1765363930452,-632.86,0.00018904,2]
[398094822,1765363930461,-516.81,0.00018904,2]
[398094823,1765363930471,-528.53,0.00018904,2]
[398094824,1765363930480,-588.94,0.00018904,2]
[398094825,1765363930489,-575.19,0.00018904,2]
[398094826,1765363930498,-550.51,0.00018904,2]
[398094827,1765363930507,-520.64,0.00018904,2]
[398094828,1765363930517,-1386.52,0.00018904,2]
[398094829,1765363930526,-626.72,0.00018904,2]
[398094830,1765363930536,-540.35,0.00018904,2]
[398094831,1765363930545,-500.0,0.00018904,2]
[398094832,1765363930554,-500.0,0.00018904,2]
[398094833,1765363930563,-500.0,0.00018904,2]
[398094834,1765363930572,-1096.94,0.00018904,2]
[398094835,1765363930582,-547.45,0.00018904,2]
[398094836,1765363930591,-1026.31,0.00018904,2]
[398094837,1765363930601,-157.94882059,0.00018904,2]
[398094838,1765363930609,-500.0,0.00018904,2]
[398094839,1765363930619,-500.0,0.00018904,2]
[398094840,1765363930631,-851.24,0.00018904,2]
[398094841,1765363930641,-504.48,0.00018904,2]
[398094842,1765363930650,-500.0,0.00018904,2]
[398094843,1765363930662,-522.11,0.00018904,2]
[398094844,1765363930671,-610.27,0.00018904,2]
[398094845,1765363930680,-687.03,0.00018904,2]
[398094846,1765363930690,-227.49910272,0.00018904,2]
[398094847,1765363930702,-500.0,0.00018904,2]
[398094848,1765363930712,-659.53,0.00018904,2]
[398094849,1765363930723,-1423.99,0.00018904,2]
[398094850,1765363930733,-605.66,0.00018904,2]
[398094851,1765363930744,-535.23,0.00018904,2]
[398094852,1765363930753,-500.0,0.00018904,2]
[398094853,1765363930763,-943.64,0.00018904,2]
[398094854,1765363930772,-157.0,0.00018904,2]
[398094855,1765363930782,-605.73,0.00018904,2]
[398094856,1765363930791,-694.43,0.00018904,2]
[398094857,1765363930800,-2000.0,0.00018904,2]
[398094858,1765363930809,-534.57,0.00018904,2]
[398094859,1765363930818,-637.14,0.00018904,2]
[398094860,1765363930827,-500.0,0.00018904,2]
[398094861,1765363930837,-500.0,0.00018904,2]
[398094862,1765363930847,-1035.09,0.00018904,2]
[398094863,1765363930856,-500.0,0.00018904,2]
[398094864,1765363930865,-638.9,0.00018904,2]
[398094865,1765363930875,-590.56,0.00018904,2]
[398094866,1765363930884,-823.36,0.00018904,2]
[398094867,1765363930893,-610.31,0.00018904,2]
[398094868,1765363930904,-500.0,0.00018904,2]
[398094869,1765363930914,-620.79,0.00018904,2]
[398094870,1765363930924,-888.67,0.00018904,2]
[398094871,1765363930934,-500.0,0.00018904,2]
[398094872,1765363930944,-500.0,0.00018904,2]
[398094873,1765363930954,-500.0,0.00018904,2]
[398094874,1765363930963,-601.0,0.00018904,2]
[398094875,1765363930974,-500.0,0.00018904,2]
[398094876,1765363930987,-619.05,0.00018904,2]
[398094877,1765363930997,-500.0,0.00018904,2]
[398094878,1765363931007,-718.66,0.00018904,2]
[398094879,1765363931016,-522.38,0.00018904,2]
[398094880,1765363931027,-575.76,0.00018904,2]
[398094881,1765363931036,-528.5,0.00018904,2]
[398094882,1765363931046,-500.0,0.00018904,2]
[398094883,1765363931056,-500.0,0.00018904,2]
[398094884,1765363931066,-500.0,0.00018904,2]
[398094885,1765363931075,-582.05,0.00018904,2]
[398094886,1765363931084,-1023.47,0.00018904,2]
[398094887,1765363931093,-2989.18,0.00018904,2]
[398094888,1765363931102,-555.46,0.00018904,2]
[398094889,1765363931111,-500.0,0.00018904,2]
[398094890,1765363931121,-1304.2,0.00018904,2]
[398094891,1765363931131,-729.87,0.00018904,2]
[398094892,1765363931140,-2869.58,0.00018904,2]
[398094893,1765363931149,-500.0,0.00018904,2]
[398094894,1765363931159,-501.94,0.00018904,2]
[398094895,1765363931168,-658.56,0.00018904,2]
[398094896,1765363931178,-548.02,0.00018904,2]
[398094897,1765363931187,-500.0,0.00018904,2]
[398094898,1765363931196,-500.0,0.00018904,2]
[398094899,1765363931205,-970.77,0.00018904,2]
[398094900,1765363931215,-1025.9,0.00018904,2]
[398094901,1765363931224,-540.25,0.00018904,2]
[398094902,1765363931233,-555.46,0.00018904,2]
[398094903,1765363931242,-832.02,0.00018904,2]
[398094904,1765363931252,-635.2,0.00018904,2]
[398094905,1765363931261,-500.0,0.00018904,2]
[398094906,1765363931270,-515.11,0.00018904,2]
[398094907,1765363931280,-557.58,0.00018904,2]
[398094908,1765363931289,-520.93,0.00018904,2]
[398094909,1765363931298,-500.0,0.00018904,2]
[398094910,1765363931307,-762.87,0.00018904,2]
[398094911,1765363931316,-2138.7,0.00018904,2]
[398094912,1765363931326,-695.06,0.00018904,2]
[398094913,1765363931335,-1364.77,0.00018904,2]
[398094914,1765363931344,-572.05,0.00018904,2]
[398094915,1765363931353,-765.27,0.00018904,2]
[398094916,1765363931362,-516.6,0.00018904,2]
[398094917,1765363931372,-467.97376143,0.00018904,2]
[398094918,1765363931381,-951.41,0.00018904,2]
[398094919,1765363931390,-679.67,0.00018904,2]
[398094920,1765363931399,-718.05,0.00018904,2]
[398094921,1765363931408,-729.92,0.00018904,2]
[398094922,1765363931417,-531.49,0.00018904,2]
[398094923,1765363931426,-500.0,0.00018904,2]
[398094924,1765363931436,-500.0,0.00018904,2]
[398094925,1765363931445,-503.74,0.00018904,2]
[398094926,1765363931455,-641.54,0.00018904,2]
[398094927,1765363931464,-1067.97,0.00018904,2]
[398094928,1765363931473,-539.19,0.00018904,2]
[398094929,1765363931483,-2594.14,0.00018904,2]
[398094930,1765363931492,-480.09393216,0.00018904,2]
[398094931,1765363931501,-500.0,0.00018904,2]
[398094932,1765363931509,-545.18,0.00018904,2]
[398094933,1765363931518,-1366.9,0.00018904,2]
[398094934,1765363931527,-780.91,0.00018904,2]
[398094935,1765363931536,-904.37,0.00018904,2]
[398094936,1765363931545,-500.0,0.00018904,2]
[398094937,1765363931554,-1011.3,0.00018904,2]
[398094938,1765363931563,-1977.85,0.00018904,2]
[398094939,1765363931572,-674.04,0.00018904,2]
[398094940,1765363931580,-530.92,0.00018904,2]
[398094941,1765363931590,-515.73,0.00018904,2]
[398094942,1765363931599,-500.0,0.00018904,2]
[398094943,1765363931608,-618.95,0.00018904,2]
[398094944,1765363931617,-746.65,0.00018904,2]
[398094945,1765363931626,-500.0,0.00018904,2]
[398094946,1765363931635,-285.35780523,0.00018904,2]
[398094947,1765363931645,-562.39,0.00018904,2]
[398094948,1765363931655,-514.85,0.00018904,2]
[398094949,1765363931664,-500.0,0.00018904,2]
[398094950,1765363931673,-594.84,0.00018904,2]
[398094951,1765363931683,-1311.95,0.00018904,2]
[398094952,1765363931695,-2704.59,0.00018904,2]
[398094953,1765363931706,-672.92,0.00018904,2]
[398094954,1765363931717,-500.0,0.00018904,2]
[398094955,1765363931727,-500.0,0.00018904,2]
[398094956,1765363931736,-500.0,0.00018904,2]
[398094957,1765363931746,-536.09,0.00018904,2]
[398094958,1765363931755,-636.09,0.00018904,2]
[398094959,1765363931765,-500.0,0.00018904,2]
[398094960,1765363931775,-518.62,0.00018904,2]
[398094961,1765363931785,-2690.76,0.00018904,2]
[398094962,1765363931794,-539.25,0.00018904,2]
[398094963,1765363931804,-669.46,0.00018904,2]
[398094964,1765363931813,-522.23,0.00018904,2]
[398094965,1765363931822,-633.04,0.00018904,2]
[398094966,1765363931832,-178.13545166,0.00018904,2]
[398094967,1765363931841,-854.51,0.00018904,2]
[398094968,1765363931850,-600.0,0.00018904,2]
[398094969,1765363931859,-152.0,0.00018918,4]
[398094970,1765363931868,-1000.0,0.00018923,2]
[398094971,1765363931877,-150.0,0.00018945,2]
[398094972,1765363931887,-1000.0,0.00018962,2]
[398094973,1765363931896,-1000.0,0.00018967,2]
[398094974,1765363931906,-1000.0,0.00018968,2]
[398094975,1765363931915,-1500.0,0.00018968,2]
[398094976,1765363931925,-1001.44702735,0.00018968,2]
[398094977,1765363931934,-1500.0,0.00018968,2]
[398094978,1765363931944,-1500.0,0.00018968,2]
[398094979,1765363931954,-1500.0,0.00018968,2]
[398094980,1765363931963,-240.42290989,0.00018968,2]
[398094981,1765363931973,-150.0,0.00018973,2]
[398094982,1765363931987,-154.87,0.00018984,2]
[398094983,1765363931996,-300.0,0.00018999,2]
[398094984,1765363932006,-300.0,0.00018999,2]
[398094985,1765363932016,-859455.09891866,0.00019,3]
[398094986,1765363932027,-3221759.57306579,0.00019,2]
[398094987,1765363932036,-3836471.65845868,0.00019,2]
[398094988,1765363932046,-170364.13886843,0.00019,2]
[398094989,1765363932058,-725200.6274538,0.00019,2]
[398094990,1765363932068,-120452.98205981,0.00019,2]
[398094991,1765363932078,-789.65255288,0.00019,2]
[398094992,1765363932087,-1650903.34780913,0.00019,2]
[398094993,1765363932097,-1758945.22455296,0.00019,2]
[398094994,1765363932106,-432771.96249561,0.00019,2]
[398094995,1765363932116,-176400.73633449,0.00019,2]
[398094996,1765363932125,-80157.45937347,0.00019,2]
[398094997,1765363932134,-1194.49015498,0.00019,2]
[398094998,1765363932145,-1194.49015498,0.00019,2]
[398094999,1765363932155,-1194.49015498,0.00019,2]
[398095000,1765363932164,-300.0,0.00019,2]
[398095001,1765363932174,-3999.70231439,0.00019,2]
[398095002,1765363932183,-3999.70231439,0.00019,2]
[398095003,1765363932192,-3999.70231439,0.00019,2]
[398095004,1765363932201,-1096.0,0.00019,2]
[398095005,1765363932210,-57785.85064236,0.00019,2]
[398095006,1765363932220,-57785.85064236,0.00019,2]
[398095007,1765363932229,-57785.85064236,0.00019,2]
[398095008,1765363932239,-57785.85064236,0.00019,2]
[398095009,1765363932248,-57785.85064236,0.00019,2]
[398095010,1765363932259,-356.19575738,0.0001901,7]
[398095011,1765363932268,-1000.0,0.00019011,2]
[398095012,1765363932278,-150.0,0.0001903,2]
[398095013,1765363932287,-152.0,0.00019059,5]
[398095014,1765363932297,-1500.0,0.00019068,2]
[398095015,1765363932306,-1500.0,0.00019068,2]
[398095016,1765363932316,-1500.0,0.00019068,2]
[398095017,1765363932326,-1500.0,0.00019068,2]
[398095018,1765363932336,-503.14727939,0.00019068,2]
[398095019,1765363932345,-1560.52065318,0.00019068,2]
[398095020,1765363932354,-1500.0,0.00019068,2]
[398095021,1765363932364,-1500.0,0.00019068,2]
[398095022,1765363932373,-1500.0,0.00019068,2]
[398095023,1765363932383,-1500.0,0.00019068,2]
[398095024,1765363932392,-1500.0,0.00019068,2]
[398095025,1765363932401,-1500.0,0.00019068,2]
[398095026,1765363932411,-1500.0,0.00019068,2]
[398095027,1765363932420,-1425.07979835,0.00019068,2]
[398095028,1765363932430,-1500.0,0.00019068,2]
[398095029,1765363932442,-1500.0,0.00019068,2]
[398095030,1765363932648,-1500.0,0.00019068,2]
[398095031,1765363932657,-200.15772017,0.00019082,2]
[398095032,1765363932667,-1045.0,0.000191,4]
[398095033,1765363932676,-1000.0,0.00019104,7]
[398095034,1765363932686,-150.0,0.00019122,2]
[398095035,1765363932695,-1000.0,0.00019128,2]
[398095036,1765363932704,-150.0,0.00019146,2]
[398095037,1765363932714,-1000.0,0.00019151,2]
[398095038,1765363932723,-150.0,0.00019153,2]
[398095039,1765363932732,-1000.0,0.00019163,2]
[398095040,1765363932742,-300.0,0.00019177,2]
[398095041,1765363932752,-442.599845,0.00019177,2]
[398095042,1765363932762,-947.85,0.00019178,2]
[398095043,1765363932771,-500.0,0.00019178,2]
[398095044,1765363932781,-500.0,0.00019178,2]
[398095045,1765363932790,-587.0,0.00019178,2]
[398095046,1765363932799,-470.51109772,0.00019178,2]
[398095047,1765363932808,-501.33,0.00019178,2]
[398095048,1765363932818,-576.82,0.00019178,2]
[398095049,1765363932827,-532.94,0.00019178,2]
[398095050,1765363932837,-526.76,0.00019178,2]
[398095051,1765363932846,-685.62,0.00019178,2]
[398095052,1765363932856,-500.0,0.00019178,2]
[398095053,1765363932866,-778.96,0.00019178,2]
[398095054,1765363932875,-500.0,0.00019178,2]
[398095055,1765363932884,-594.25,0.00019178,2]
[398095056,1765363932894,-695.24,0.00019178,2]
[398095057,1765363932904,-315.24910189,0.00019178,2]
[398095058,1765363932913,-571.54,0.00019178,2]
[398095059,1765363932922,-500.0,0.00019178,2]
[398095060,1765363932932,-500.0,0.00019178,2]
[398095061,1765363932942,-537.71,0.00019178,2]
[398095062,1765363932952,-526.55,0.00019178,2]
[398095063,1765363932961,-622.54,0.00019178,2]
[398095064,1765363932970,-500.0,0.00019178,2]
[398095065,1765363932983,-569.43,0.00019178,2]
[398095066,1765363932994,-500.0,0.00019178,2]
[398095067,1765363933004,-614.97,0.00019178,2]
[398095068,1765363933014,-521.75,0.00019178,2]
[398095069,1765363933026,-691.35,0.00019178,2]
[398095070,1765363933036,-500.0,0.00019178,2]
[398095071,1765363933045,-500.0,0.00019178,2]
[398095072,1765363933056,-831.61,0.00019178,2]
[398095073,1765363933066,-580.62,0.00019178,2]
[398095074,1765363933076,-607.34,0.00019178,2]
[398095075,1765363933085,-558.66,0.00019178,2]
[398095076,1765363933095,-500.0,0.00019178,2]
[398095077,1765363933105,-687.2,0.00019178,2]
[398095078,1765363933115,-697.92,0.00019178,2]
[398095079,1765363933124,-663.24,0.00019178,2]
[398095080,1765363933133,-500.0,0.00019178,2]
[398095081,1765363933143,-188.98546699,0.00019178,2]
[398095082,1765363933153,-632.86,0.00019178,2]
[398095083,1765363933163,-516.81,0.00019178,2]
[398095084,1765363933172,-528.53,0.00019178,2]
[398095085,1765363933182,-588.94,0.00019178,2]
[398095086,1765363933192,-575.19,0.00019178,2]
[398095087,1765363933202,-550.51,0.00019178,2]
[398095088,1765363933212,-520.64,0.00019178,2]
[398095089,1765363933222,-1386.52,0.00019178,2]
[398095090,1765363933231,-626.72,0.00019178,2]
[398095091,1765363933241,-540.35,0.00019178,2]
[398095092,1765363933250,-187.32,0.00019178,2]
[398095093,1765363933260,-500.0,0.00019178,2]
[398095094,1765363933268,-500.0,0.00019178,2]
[398095095,1765363933278,-1096.94,0.00019178,2]
[398095096,1765363933287,-547.45,0.00019178,2]
[398095097,1765363933297,-1026.31,0.00019178,2]
[398095098,1765363933306,-500.0,0.00019178,2]
[398095099,1765363933315,-500.0,0.00019178,2]
[398095100,1765363933324,-851.24,0.00019178,2]
[398095101,1765363933333,-504.48,0.00019178,2]
[398095102,1765363933342,-527.50718916,0.00019178,2]
[398095103,1765363933351,-522.11,0.00019178,2]
[398095104,1765363933360,-610.27,0.00019178,2]
[398095105,1765363933369,-687.03,0.00019178,2]
[398095106,1765363933379,-467.18246379,0.00019178,2]
[398095107,1765363933388,-659.53,0.00019178,2]
[398095108,1765363933398,-1423.99,0.00019178,2]
[398095109,1765363933407,-605.66,0.00019178,2]
[398095110,1765363933416,-535.23,0.00019178,2]
[398095111,1765363933425,-500.0,0.00019178,2]
[398095112,1765363933434,-943.64,0.00019178,2]
[398095113,1765363933443,-157.0,0.00019178,2]
[398095114,1765363933453,-605.73,0.00019178,2]
[398095115,1765363933462,-694.43,0.00019178,2]
[398095116,1765363933472,-2000.0,0.00019178,2]
[398095117,1765363933481,-534.57,0.00019178,2]
[398095118,1765363933490,-637.14,0.00019178,2]
[398095119,1765363933499,-500.0,0.00019178,2]
[398095120,1765363933508,-500.0,0.00019178,2]
[398095121,1765363933518,-1035.09,0.00019178,2]
[398095122,1765363933527,-500.0,0.00019178,2]
[398095123,1765363933537,-638.9,0.00019178,2]
[398095124,1765363933546,-590.56,0.00019178,2]
[398095125,1765363933555,-823.36,0.00019178,2]
[398095126,1765363933565,-610.31,0.00019178,2]
[398095127,1765363933575,-500.0,0.00019178,2]
[398095128,1765363933585,-620.79,0.00019178,2]
[398095129,1765363933595,-888.67,0.00019178,2]
[398095130,1765363933604,-301.81395924,0.00019178,2]
[398095131,1765363933615,-500.0,0.00019178,2]
[398095132,1765363933624,-500.0,0.00019178,2]
[398095133,1765363933634,-601.0,0.00019178,2]
[398095134,1765363933644,-500.0,0.00019178,2]
[398095135,1765363933653,-619.05,0.00019178,2]
[398095136,1765363933663,-500.0,0.00019178,2]
[398095137,1765363933672,-718.66,0.00019178,2]
[398095138,1765363933682,-522.38,0.00019178,2]
[398095139,1765363933691,-575.76,0.00019178,2]
[398095140,1765363933701,-528.5,0.00019178,2]
[398095141,1765363933710,-500.0,0.00019178,2]
[398095142,1765363933720,-448.42554009,0.00019178,2]
[398095143,1765363933730,-500.0,0.00019178,2]
[398095144,1765363933739,-582.05,0.00019178,2]
[398095145,1765363933748,-1023.47,0.00019178,2]
[398095146,1765363933758,-2989.18,0.00019178,2]
[398095147,1765363933767,-555.46,0.00019178,2]
[398095148,1765363933777,-500.0,0.00019178,2]
[398095149,1765363933786,-1304.2,0.00019178,2]
[398095150,1765363933795,-729.87,0.00019178,2]
[398095151,1765363933804,-2869.58,0.00019178,2]
[398095152,1765363933813,-500.0,0.00019178,2]
[398095153,1765363933822,-501.94,0.00019178,2]
[398095154,1765363933831,-658.56,0.00019178,2]
[398095155,1765363933841,-548.02,0.00019178,2]
[398095156,1765363933850,-156.05741576,0.00019178,2]
[398095157,1765363933860,-592.17339787,0.00019178,2]
[398095158,1765363933869,-970.77,0.00019178,2]
[398095159,1765363933880,-1025.9,0.00019178,2]
[398095160,1765363933889,-540.25,0.00019178,2]
[398095161,1765363933898,-555.46,0.00019178,2]
[398095162,1765363933907,-832.02,0.00019178,2]
[398095163,1765363933917,-500.0,0.00019178,2]
[398095164,1765363933926,-500.0,0.00019178,2]
[398095165,1765363933936,-500.0,0.00019178,2]
[398095166,1765363933945,-500.0,0.00019178,2]
[398095167,1765363933954,-500.0,0.00019178,2]
[398095168,1765363933964,-500.0,0.00019178,2]
[398095169,1765363933973,-500.0,0.00019178,2]
[398095170,1765363933987,-500.0,0.00019178,2]
[398095171,1765363933996,-500.0,0.00019178,2]
[398095172,1765363934005,-500.0,0.00019178,2]
[398095173,1765363934014,-500.0,0.00019178,2]
[398095174,1765363934025,-500.0,0.00019178,2]
[398095175,1765363934034,-500.0,0.00019178,2]
[398095176,1765363934044,-500.0,0.00019178,2]
[398095177,1765363934055,-500.0,0.00019178,2]
[398095178,1765363934065,-500.0,0.00019178,2]
[398095179,1765363934074,-500.0,0.00019178,2]
[398095180,1765363934083,-635.2,0.00019178,2]
[398095181,1765363934093,-500.0,0.00019178,2]
[398095182,1765363934102,-500.0,0.00019178,2]
[398095183,1765363934112,-500.0,0.00019178,2]
[398095184,1765363934121,-500.0,0.00019178,2]
[398095185,1765363934130,-500.0,0.00019178,2]
[398095186,1765363934139,-500.0,0.00019178,2]
[398095187,1765363934149,-500.0,0.00019178,2]
[398095188,1765363934158,-500.0,0.00019178,2]
[398095189,1765363934168,-500.0,0.00019178,2]
[398095190,1765363934177,-500.0,0.00019178,2]
[398095191,1765363934186,-500.0,0.00019178,2]
[398095192,1765363934195,-500.0,0.00019178,2]
[398095193,1765363934204,-500.0,0.00019178,2]
[398095194,1765363934214,-500.0,0.00019178,2]
[398095195,1765363934225,-500.0,0.00019178,2]
[398095196,1765363934235,-500.0,0.00019178,2]
[398095197,1765363934245,-500.0,0.00019178,2]
[398095198,1765363934255,-500.0,0.00019178,2]
[398095199,1765363934265,-500.0,0.00019178,2]
[398095200,1765363934275,-500.0,0.00019178,2]
[398095201,1765363934284,-500.0,0.00019178,2]
[398095202,1765363934294,-500.0,0.00019178,2]
[398095203,1765363934303,-500.0,0.00019178,2]
[398095204,1765363934313,-500.0,0.00019178,2]
[398095205,1765363934322,-500.0,0.00019178,2]
[398095206,1765363934331,-415.5992033,0.00019178,2]
[398095207,1765363934341,-500.0,0.00019178,2]
[398095208,1765363934350,-500.0,0.00019178,2]
[398095209,1765363934360,-500.0,0.00019178,2]
[398095210,1765363934370,-500.0,0.00019178,2]
[398095211,1765363934382,-500.0,0.00019178,2]
[398095212,1765363934391,-500.0,0.00019178,2]
[398095213,1765363934402,-500.0,0.00019178,2]
[398095214,1765363934412,-500.0,0.00019178,2]
[398095215,1765363934423,-500.0,0.00019178,2]
[398095216,1765363934432,-500.0,0.00019178,2]
[398095217,1765363934443,-500.0,0.00019178,2]
[398095218,1765363934453,-500.0,0.00019178,2]
[398095219,1765363934464,-297.11577648,0.00019178,2]
[398095220,1765363934473,-515.11,0.00019178,2]
[398095221,1765363934484,-557.58,0.00019178,2]
[398095222,1765363934494,-520.93,0.00019178,2]
[398095223,1765363934502,-500.0,0.00019178,2]
[398095224,1765363934511,-762.87,0.00019178,2]
[398095225,1765363934520,-2138.7,0.00019178,2]
[398095226,1765363934529,-695.06,0.00019178,2]
[398095227,1765363934539,-2348.48968666,0.00019178,2]
[398095228,1765363934548,-2348.48968666,0.00019178,2]
[398095229,1765363934557,-2348.48968666,0.00019178,2]
[398095230,1765363934566,-2348.48968666,0.00019178,2]
[398095231,1765363934575,-2348.48968666,0.00019178,2]
[398095232,1765363934584,-2348.48968666,0.00019178,2]
[398095233,1765363934593,-2348.48968666,0.00019178,2]
[398095234,1765363934602,-2348.48968666,0.00019178,2]
[398095235,1765363934611,-2348.48968666,0.00019178,2]
[398095236,1765363934620,-2348.48968666,0.00019178,2]
[398095237,1765363934629,-572.05,0.00019178,2]
[398095238,1765363934638,-2348.48968666,0.00019178,2]
[398095239,1765363934647,-2348.48968666,0.00019178,2]
[398095240,1765363934656,-2348.48968666,0.00019178,2]
[398095241,1765363934665,-2348.48968666,0.00019178,2]
[398095242,1765363934674,-2348.48968666,0.00019178,2]
[398095243,1765363934683,-2348.48968666,0.00019178,2]
[398095244,1765363934692,-2348.48968666,0.00019178,2]
[398095245,1765363934701,-2348.48968666,0.00019178,2]
[398095246,1765363934709,-2348.48968666,0.00019178,2]
[398095247,1765363934718,-2348.48968666,0.00019178,2]
[398095248,1765363934727,-2348.48968666,0.00019178,2]
[398095249,1765363934737,-2348.48968666,0.00019178,2]
[398095250,1765363934746,-2348.48968666,0.00019178,2]
[398095251,1765363934755,-2348.48968666,0.00019178,2]
[398095252,1765363934764,-2348.48968666,0.00019178,2]
[398095253,1765363934774,-2348.48968666,0.00019178,2]
[398095254,1765363934783,-2348.48968666,0.00019178,2]
[398095255,1765363934792,-2348.48968666,0.00019178,2]
[398095256,1765363934801,-2348.48968666,0.00019178,2]
[398095257,1765363934810,-2348.48968666,0.00019178,2]
[398095258,1765363934819,-2348.48968666,0.00019178,2]
[398095259,1765363934828,-2348.48968666,0.00019178,2]
[398095260,1765363934837,-2348.48968666,0.00019178,2]
[398095261,1765363934847,-765.27,0.00019178,2]
[398095262,1765363934856,-516.6,0.00019178,2]
[398095263,1765363934865,-1364.77,0.00019178,2]
[398095264,1765363934874,-951.41,0.00019178,2]
[398095265,1765363934884,-679.67,0.00019178,2]
[398095266,1765363934893,-718.05,0.00019178,2]
[398095267,1765363934902,-3000.0,0.00019178,2]
[398095268,1765363934911,-3000.0,0.00019178,7]
[398095269,1765363934921,-2083.21012531,0.00019178,12]
[398095270,1765363934931,-729.92,0.00019178,2]
[398095271,1765363934940,-531.49,0.00019178,2]
[398095272,1765363934949,-500.0,0.00019178,2]
[398095273,1765363934958,-2348.48968658,0.00019178,2]
[398095274,1765363934968,-503.74,0.00019178,2]
[398095275,1765363934979,-500.0,0.00019178,2]
[398095276,1765363934991,-641.54,0.00019178,2]
[398095277,1765363935003,-1067.97,0.00019178,2]
[398095278,1765363935014,-539.19,0.00019178,2]
[398095279,1765363935027,-2594.14,0.00019178,2]
[398095280,1765363935036,-500.0,0.00019178,2]
[398095281,1765363935046,-545.18,0.00019178,2]
[398095282,1765363935055,-2348.48968657,0.00019178,2]
[398095283,1765363935065,-1366.9,0.00019178,2]
[398095284,1765363935075,-780.91,0.00019178,2]
[398095285,1765363935085,-904.37,0.00019178,2]
[398095286,1765363935095,-500.0,0.00019178,2]
[398095287,1765363935106,-1011.3,0.00019178,2]
[398095288,1765363935116,-1977.85,0.00019178,2]
[398095289,1765363935127,-674.04,0.00019178,2]
[398095290,1765363935138,-530.92,0.00019178,2]
[398095291,1765363935147,-515.73,0.00019178,2]
[398095292,1765363935158,-500.0,0.00019178,2]
[398095293,1765363935169,-618.95,0.00019178,2]
[398095294,1765363935179,-746.65,0.00019178,2]
[398095295,1765363935191,-500.0,0.00019178,2]
[398095296,1765363935200,-562.39,0.00019178,2]
[398095297,1765363935211,-514.85,0.00019178,2]